bitfinex/quotes_BTCUSD_20260311
["timestamp","ask_amount","ask_price","bid_price","bid_amount"]
[1773244813030,0.20394519,70249.0,70210.0,0.2019474]
[1773244813031,0.20394519,70247.0,70210.0,0.2019474]
[1773244813284,0.20394519,70247.0,70213.0,0.00144]
[1773244813486,0.20344008,70247.0,70213.0,0.00093489]
[1773244813708,0.20293539,70247.0,70213.0,0.0004302]
[1773244813924,0.20243112,70247.0,70213.0,0.0004302]
[1773244814139,0.20243112,70247.0,70213.0,0.00144]
[1773244814344,0.2019273,70247.0,70213.0,0.00093618]
[1773244814751,0.20142394,70247.0,70213.0,0.00043282]
[1773244815115,0.20394519,70239.0,70203.0,0.07122202]
[1773244815311,0.20394519,70239.0,70203.0,0.00144]
[1773244815516,0.20394519,70237.0,70203.0,0.00144]
[1773244815715,0.20394519,70237.0,70203.0,0.2033874]
[1773244815920,0.20394519,70245.0,70203.0,0.2033874]
[1773244816136,0.20394519,70243.0,70203.0,0.2033874]
[1773244816536,0.07117843,70246.0,70203.0,0.2033874]
[1773244816765,0.27510639,70264.0,70221.0,0.2019474]
[1773244817098,0.27510639,70264.0,70225.0,0.2019474]
[1773244817212,0.00148,70263.0,70225.0,0.2019474]
[1773244817613,0.20394519,70262.0,70226.0,0.00144]
[1773244817826,0.20394519,70262.0,70227.0,0.00144]
[1773244818068,0.20394519,70262.0,70227.0,0.2033874]
[1773244818628,0.00148,70261.0,70227.0,0.2033874]
[1773244818848,0.00148,70260.0,70227.0,0.2033874]
[1773244819058,0.07116627,70258.0,70228.0,0.07119667]
[1773244819250,0.07116627,70258.0,70229.0,0.2019474]
[1773244819479,0.00148,70257.0,70229.0,0.2019474]
[1773244819860,0.07116627,70258.0,70229.0,0.2019474]
[1773244820047,0.00148,70257.0,70229.0,0.2019474]
[1773244820637,0.2097085,70257.0,70229.0,0.2019474]
[1773244820909,0.2082285,70257.0,70230.0,0.00144]
[1773244821109,0.07117032,70254.0,70233.0,0.21169845]
[1773244821334,0.07265032,70254.0,70233.0,0.21154764]
[1773244821538,0.07116024,70264.0,70233.0,0.21154764]
[1773244821740,0.00022001,70270.0,70232.0,0.07119261]
[1773244821741,0.00022001,70270.0,70240.0,0.12772006]
[1773244821943,0.00022001,70270.0,70241.0,0.21298765]
[1773244822242,0.00022001,70270.0,70242.0,0.21169845]
[1773244822588,0.07137468,70270.0,70242.0,0.21169845]
[1773244822914,0.00014861,70275.0,70251.0,0.21169845]
[1773244823113,0.07141215,70275.0,70254.0,0.21169845]
[1773244823435,0.07141231,70275.0,70254.0,0.21169845]
[1773244823995,0.27964081,70275.0,70254.0,0.21169845]
[1773244824201,0.2082285,70274.0,70233.0,0.001]
[1773244824423,0.07141231,70275.0,70234.0,0.21169845]
[1773244824424,0.12772006,70270.0,70234.0,0.21169845]
[1773244824620,0.2097085,70269.0,70234.0,0.21313845]
[1773244825050,0.07115614,70268.0,70235.0,0.07118957]
[1773244825354,0.2082285,70262.0,70235.0,0.07118957]
[1773244825508,0.00144,70261.0,70254.0,0.001]
[1773244825707,0.2082285,70260.0,70241.0,0.00144]
[1773244825915,0.00144,70259.0,70241.0,0.21313845]
[1773244826249,0.00022001,70263.0,70241.0,0.21313845]
[1773244827151,0.07115614,70270.0,70243.0,0.21169845]
[1773244827332,0.00022001,70271.0,70243.0,0.21169845]
[1773244827743,0.07115411,70270.0,70243.0,0.21169845]
[1773244828130,0.2082285,70269.0,70244.0,0.00144]
[1773244828312,0.2082285,70269.0,70254.0,0.001]
[1773244828514,0.2082285,70269.0,70254.0,0.00244]
[1773244828763,0.2082285,70269.0,70254.0,0.00144]
[1773244828923,0.07137338,70271.0,70255.0,0.21313845]
[1773244829267,0.07137338,70271.0,70257.0,0.07082152]
[1773244829465,0.2082285,70270.0,70256.0,0.00144]
[1773244829664,0.2082285,70270.0,70254.0,0.00144]
[1773244829823,0.2082285,70270.0,70243.0,0.001]
[1773244830014,0.2082285,70268.0,70244.0,0.00144]
[1773244830221,0.2082285,70266.0,70244.0,0.00144]
[1773244830629,0.2082285,70266.0,70244.0,0.21313845]
[1773244831238,0.2082285,70264.0,70245.0,0.07117944]
[1773244831483,0.2082285,70264.0,70238.0,0.00144]
[1773244831685,0.2082285,70264.0,70232.0,0.00144]
[1773244831861,0.2082285,70264.0,70226.0,0.21169845]
[1773244832062,0.2082285,70264.0,70233.0,0.00144]
[1773244832262,0.2082285,70264.0,70226.0,0.21169845]
[1773244832671,0.2082285,70259.0,70226.0,0.21169845]
[1773244832849,0.2082285,70259.0,70227.0,0.00144]
[1773244833246,0.2082285,70257.0,70227.0,0.07119768]
[1773244833481,0.2082285,70257.0,70228.0,0.00144]
[1773244834100,0.2082285,70257.0,70227.0,0.28289613]
[1773244834399,0.2082285,70257.0,70229.0,0.00144]
[1773244834907,0.07116627,70258.0,70231.0,0.21169845]
[1773244835128,0.07260627,70258.0,70231.0,0.21169845]
[1773244835482,0.07260627,70258.0,70233.0,0.21169845]
[1773244836020,0.28083477,70258.0,70233.0,0.21169845]
[1773244836259,0.2082285,70257.0,70229.0,0.00144]
[1773244836432,0.2082285,70257.0,70230.0,0.00144]
[1773244836947,0.2082285,70257.0,70226.0,0.0711987]
[1773244837149,0.2082285,70257.0,70227.0,0.00144]
[1773244837967,0.2082285,70257.0,70224.0,0.07160658]
[1773244837968,0.2082285,70255.0,70224.0,0.07160658]
[1773244838154,0.2082285,70255.0,70225.0,0.00144]
[1773244838310,0.2082285,70255.0,70231.0,0.001]
[1773244838510,0.00144,70254.0,70231.0,0.001]
[1773244838776,0.2082285,70253.0,70225.0,0.00144]
[1773244839026,0.2082285,70253.0,70224.0,0.0004068]
[1773244839214,0.2082285,70253.0,70224.0,0.07160751]
[1773244839625,0.12772006,70250.0,70224.0,0.0004068]
[1773244839910,0.12772006,70250.0,70213.0,0.0002]
[1773244839911,0.07118653,70238.0,70213.0,0.0002]
[1773244840113,0.2096685,70237.0,70213.0,0.0002]
[1773244840318,0.2082285,70237.0,70213.0,0.0002]
[1773244840557,0.00144,70236.0,70214.0,0.20021925]
[1773244840683,0.2082285,70237.0,70214.0,0.20021925]
[1773244840883,0.00144,70236.0,70214.0,0.20021925]
[1773244841316,0.19516203,70235.0,70214.0,0.20021925]
[1773244841679,0.19516203,70235.0,70213.0,0.07141149]
[1773244841909,0.07119059,70234.0,70213.0,0.07141149]
[1773244842101,0.07097705,70234.0,70213.0,0.27163074]
[1773244842340,0.07097705,70234.0,70214.0,0.20021925]
[1773244842485,0.00148,70245.0,70220.0,0.12772006]
[1773244842689,0.00011404,70250.0,70222.0,0.20021925]
[1773244842888,0.00011404,70250.0,70227.0,0.20021925]
[1773244843433,0.07128896,70250.0,70227.0,0.20021925]
[1773244843637,0.00011404,70250.0,70227.0,0.20021925]
[1773244843790,0.001,70253.0,70231.0,0.20021925]
[1773244843997,0.07116676,70258.0,70234.0,0.20021925]
[1773244845660,0.001,70250.0,70234.0,0.20021925]
[1773244846091,0.26632879,70258.0,70235.0,0.07118957]
[1773244846530,0.19516203,70257.0,70235.0,0.07118957]
[1773244847740,0.19516203,70257.0,70232.0,0.00144]
[1773244847900,0.19516203,70257.0,70231.0,0.07157347]
[1773244848235,0.19516203,70255.0,70231.0,0.07301347]
[1773244848432,0.07116829,70256.0,70223.0,0.00144]
[1773244848433,0.12772006,70250.0,70223.0,0.00144]
[1773244848640,0.19664203,70249.0,70219.0,0.07120573]
[1773244848805,0.19664203,70249.0,70218.0,0.0002]
[1773244849009,0.19664203,70249.0,70215.0,0.07120975]
[1773244849010,0.19664203,70249.0,70217.0,0.0712077]
[1773244849646,0.19516203,70249.0,70218.0,0.20021925]
[1773244849851,0.20627354,70260.0,70221.0,0.20603171]
[1773244850055,0.00148,70259.0,70222.0,0.07120275]
[1773244850203,0.00148,70258.0,70223.0,0.20747171]
[1773244851788,0.07116457,70260.0,70223.0,0.20747171]
[1773244851915,0.00148,70257.0,70223.0,0.20747171]
[1773244852116,0.07116829,70256.0,70225.0,0.20603171]
[1773244852324,0.07116829,70256.0,70227.0,0.20603171]
[1773244852546,0.20627354,70255.0,70227.0,0.20603171]
[1773244853573,0.20627354,70255.0,70228.0,0.00144]
[1773244854173,0.07117032,70254.0,70229.0,0.07119565]
[1773244854403,0.00148,70253.0,70229.0,0.07119565]
[1773244854603,0.07117032,70254.0,70230.0,0.20603171]
[1773244854765,0.00148,70252.0,70230.0,0.20603171]
[1773244854961,0.00022001,70258.0,70231.0,0.20603171]
[1773244855355,0.07138635,70258.0,70231.0,0.20603171]
[1773244855607,0.00022001,70258.0,70231.0,0.20603171]
[1773244855836,0.00148,70268.0,70241.0,0.20603171]
[1773244856122,0.00022001,70266.0,70243.0,0.20603171]
[1773244856319,0.00022001,70278.0,70251.0,0.20603171]
[1773244856555,0.07136644,70278.0,70253.0,0.20603171]
[1773244856841,0.00022001,70273.0,70253.0,0.20603171]
[1773244857835,0.1,70264.0,70253.0,0.20603171]
[1773244858242,0.00022001,70273.0,70255.0,0.20603171]
[1773244859403,0.00022001,70277.0,70260.0,0.12772006]
[1773244859596,0.0003623,70280.0,70261.0,0.20747171]
[1773244859781,0.0003623,70280.0,70261.0,0.20758357]
[1773244860325,0.0003623,70280.0,70262.0,0.07116222]
[1773244861288,0.00022001,70288.0,70263.0,0.20603171]
[1773244861497,0.00022001,70289.0,70262.0,0.07116222]
[1773244861498,0.00022001,70295.0,70271.0,0.20603171]
[1773244861716,0.00070001,70304.0,70273.0,0.20603171]
[1773244861920,0.00070001,70304.0,70281.0,0.20603171]
[1773244862115,0.00070001,70304.0,70283.0,0.20603171]
[1773244862333,0.00070001,70304.0,70285.0,0.20603171]
[1773244863032,0.00070001,70304.0,70285.0,0.20588942]
[1773244863533,0.00070001,70304.0,70285.0,0.20600126]
[1773244863692,0.000441,70310.0,70291.0,0.20603171]
[1773244863892,0.0711007,70323.0,70293.0,0.20603171]
[1773244864089,0.07110006,70324.0,70293.0,0.20603171]
[1773244864290,0.07109849,70325.0,70295.0,0.20603171]
[1773244864532,0.0710941,70330.0,70295.0,0.20603171]
[1773244864754,0.07109229,70332.0,70295.0,0.20603171]
[1773244865094,0.20627354,70331.0,70295.0,0.20603171]
[1773244865294,0.07109229,70332.0,70295.0,0.20603171]
[1773244865498,0.07153239,70334.0,70294.0,0.07112982]
[1773244865499,0.000441,70334.0,70302.0,0.20603171]
[1773244865698,0.000441,70334.0,70304.0,0.20603171]
[1773244865963,0.07153077,70334.0,70304.0,0.20603171]
[1773244866095,0.000441,70334.0,70304.0,0.20603171]
[1773244866298,0.00022001,70307.0,70306.0,0.20603171]
[1773244866537,0.000441,70334.0,70305.0,0.07111869]
[1773244866538,0.000441,70334.0,70307.0,0.20603171]
[1773244867783,0.00081394,70334.0,70307.0,0.20603171]
[1773244868164,0.00081394,70334.0,70311.0,0.20603171]
[1773244868366,0.00081394,70334.0,70313.0,0.20603171]
[1773244868593,0.07190365,70334.0,70313.0,0.20603171]
[1773244868894,0.00081394,70334.0,70314.0,0.00144]
[1773244869198,0.0719039,70334.0,70314.0,0.00144]
[1773244869538,0.20627354,70333.0,70296.0,0.36091171]
[1773244869743,0.0719039,70334.0,70298.0,0.20603171]
[1773244870395,0.07109139,70332.0,70299.0,0.07112476]
[1773244870606,0.07109139,70332.0,70281.0,0.20603171]
[1773244870607,0.20627354,70329.0,70281.0,0.20603171]
[1773244870791,0.20627354,70318.0,70282.0,0.00144]
[1773244870949,0.20627354,70316.0,70283.0,0.00144]
[1773244871153,0.20627354,70316.0,70284.0,0.00144]
[1773244872014,0.20627354,70316.0,70299.0,0.002]
[1773244872327,0.20627354,70316.0,70284.0,0.00144]
[1773244872684,0.20627354,70314.0,70285.0,0.07113893]
[1773244872880,0.00144,70313.0,70285.0,0.07113893]
[1773244873079,0.20771354,70313.0,70285.0,0.07113893]
[1773244873365,0.00144,70312.0,70285.0,0.07113893]
[1773244874061,0.20627354,70313.0,70285.0,0.07113893]
[1773244874358,0.00144,70312.0,70285.0,0.07113893]
[1773244874576,0.07110858,70317.0,70285.0,0.07113893]
[1773244874577,0.27184634,70319.0,70286.0,0.20603171]
[1773244874776,0.20627354,70314.0,70287.0,0.07113691]
[1773244875124,0.20627354,70314.0,70288.0,0.00144]
[1773244875570,0.20627354,70314.0,70287.0,0.07113691]
[1773244875749,0.20627354,70314.0,70288.0,0.00144]
[1773244876159,0.27737575,70322.0,70289.0,0.20603171]
[1773244876356,0.07110757,70318.0,70289.0,0.20603171]
[1773244876681,0.20627354,70317.0,70290.0,0.00144]
[1773244877064,0.20627354,70315.0,70291.0,0.07113286]
[1773244877262,0.20627354,70315.0,70292.0,0.00144]
[1773244877434,0.00022001,70312.0,70292.0,0.00144]
[1773244877639,0.20627354,70311.0,70291.0,0.07113286]
[1773244877852,0.00022001,70312.0,70292.0,0.00144]
[1773244878250,0.20649355,70312.0,70292.0,0.00144]
[1773244878864,0.00022001,70312.0,70292.0,0.00144]
[1773244879061,0.07133176,70312.0,70293.0,0.07113083]
[1773244879351,0.00022001,70312.0,70293.0,0.07113083]
[1773244880124,0.20793355,70320.0,70294.0,0.20015276]
[1773244880125,0.00022001,70320.0,70294.0,0.20015276]
[1773244880651,0.20805436,70335.0,70300.0,0.12739342]
[1773244880799,0.00144,70343.0,70301.0,0.20159276]
[1773244881005,0.07107934,70344.0,70311.0,0.20015276]
[1773244881228,0.07108132,70342.0,70314.0,0.20015276]
[1773244881746,0.01227518,70348.0,70321.0,0.20015276]
[1773244881981,0.01227518,70348.0,70320.0,0.12739342]
[1773244881982,1e-08,70348.0,70322.0,0.00144]
[1773244882153,0.20842731,70348.0,70322.0,0.00144]
[1773244882348,0.00037295,70348.0,70315.0,0.20015276]
[1773244882540,0.00037295,70348.0,70317.0,0.20015276]
[1773244882940,0.00037295,70348.0,70320.0,0.12739342]
[1773244883191,0.00056555,70348.0,70323.0,0.20015276]
[1773244884197,0.00056555,70348.0,70325.0,0.20015276]
[1773244884369,0.00056555,70348.0,70300.0,0.17072]
[1773244884573,0.00056555,70348.0,70240.0,0.00142226]
[1773244884575,0.20805436,70332.0,70280.0,0.07114399]
[1773244884771,0.20022721,70346.0,70280.0,0.07114399]
[1773244884772,0.20805436,70317.0,70281.0,0.00144]
[1773244885106,0.20022721,70318.0,70283.0,0.20015276]
[1773244885312,0.07110656,70317.0,70284.0,0.2712927]
[1773244885636,0.20805436,70316.0,70285.0,0.00144]
[1773244885839,0.20805436,70316.0,70292.0,0.0002]
[1773244885974,0.20805436,70316.0,70293.0,0.00144]
[1773244886375,0.20805436,70316.0,70292.0,0.0002]
[1773244886582,0.20805436,70316.0,70293.0,0.00144]
[1773244887101,0.20022721,70318.0,70293.0,0.00144]
[1773244887282,0.20022721,70318.0,70294.0,0.07112982]
[1773244887283,0.2713329,70318.0,70294.0,0.07112982]
[1773244887479,0.07110569,70318.0,70294.0,0.07112982]
[1773244888017,0.20022721,70319.0,70294.0,0.07112982]
[1773244888554,0.27133217,70319.0,70294.0,0.07112982]
[1773244889093,0.27133184,70319.0,70294.0,0.07112982]
[1773244889698,0.20022721,70319.0,70294.0,0.07112982]
[1773244889957,0.27133188,70319.0,70294.0,0.07112982]
[1773244890150,0.001,70316.0,70294.0,0.07112982]
[1773244890575,0.00014219,70327.0,70300.0,0.12739342]
[1773244890729,0.00014219,70327.0,70301.0,0.20159276]
[1773244891244,0.00014219,70327.0,70302.0,0.07112173]
[1773244891477,0.00014219,70327.0,70302.0,0.27127449]
[1773244892061,0.00014219,70327.0,70302.0,0.07112173]
[1773244892436,0.00014219,70327.0,70303.0,0.20015276]
[1773244893339,0.00014219,70327.0,70304.0,0.0711197]
[1773244893552,0.00014219,70327.0,70305.0,0.20015276]
[1773244893753,0.00014219,70327.0,70311.0,0.20015276]
[1773244893958,0.00022001,70334.0,70312.0,0.20159276]
[1773244894193,0.0001926,70341.0,70304.0,0.0711197]
[1773244894194,0.0001926,70341.0,70314.0,0.20015276]
[1773244894369,0.0001926,70341.0,70316.0,0.20015276]
[1773244894574,0.0001926,70341.0,70317.0,0.00144]
[1773244894972,0.0001926,70341.0,70318.0,0.20015276]
[1773244894973,0.00056554,70341.0,70318.0,0.20015276]
[1773244895506,0.00056554,70341.0,70320.0,0.20015276]
[1773244896006,0.00056554,70341.0,70321.0,0.19337748]
[1773244896845,0.00056554,70341.0,70317.0,0.07254453]
[1773244896846,0.20805436,70339.0,70317.0,0.07110554]
[1773244897073,0.20805436,70339.0,70318.0,0.00144]
[1773244897231,0.20805436,70339.0,70319.0,0.00144]
[1773244897424,0.20805436,70338.0,70320.0,0.00144]
[1773244897626,0.20805436,70338.0,70321.0,0.00144]
[1773244899532,0.00022001,70342.0,70321.0,0.00144]
[1773244899533,0.40850158,70349.0,70322.0,0.0711015]
[1773244899765,0.4036134,70349.0,70323.0,0.39525574]
[1773244899955,0.4036134,70349.0,70323.0,0.39562868]
[1773244900160,0.19555904,70349.0,70324.0,0.21558767]
[1773244900322,0.26663342,70349.0,70324.0,0.21558767]
[1773244900852,0.00166001,70356.0,70323.0,0.19547592]
[1773244900853,0.0710643,70359.0,70330.0,0.12739342]
[1773244901064,0.19743723,70359.0,70324.0,0.21558767]
[1773244901377,0.001,70348.0,70324.0,0.21558767]
[1773244901590,0.001,70348.0,70326.0,0.21558767]
[1773244901786,0.20022721,70361.0,70326.0,0.21558767]
[1773244902429,0.07105835,70365.0,70325.0,0.07109847]
[1773244902430,0.21779203,70372.0,70331.0,0.21558767]
[1773244902561,0.41522926,70388.0,70356.0,0.21299493]
[1773244902754,0.38536471,70388.0,70357.0,0.21702767]
[1773244903162,0.21779203,70388.0,70357.0,0.21702767]
[1773244903362,0.21779203,70388.0,70360.0,0.12739342]
[1773244903562,0.07103584,70387.0,70361.0,0.21558767]
[1773244903805,0.07114761,70387.0,70361.0,0.21558767]
[1773244904011,0.07114761,70387.0,70357.0,0.07106512]
[1773244904012,0.19743723,70386.0,70357.0,0.07106512]
[1773244904347,0.21779203,70379.0,70349.0,0.00144]
[1773244904477,0.19887723,70378.0,70338.0,0.00144]
[1773244904684,0.19887723,70378.0,70339.0,0.00144]
[1773244904877,0.19743723,70378.0,70339.0,0.00144]
[1773244905079,0.19743723,70376.0,70339.0,0.00144]
[1773244905485,0.00144,70375.0,70342.0,0.28666895]
[1773244905703,0.19743723,70376.0,70350.0,0.12739342]
[1773244905902,0.19743723,70376.0,70351.0,0.00144]
[1773244906283,0.00144,70377.0,70351.0,0.21702767]
[1773244906721,0.07104492,70378.0,70352.0,0.12084625]
[1773244906888,0.07104492,70378.0,70357.0,0.001]
[1773244907097,0.07104492,70378.0,70358.0,0.00144]
[1773244907486,0.21779203,70379.0,70359.0,0.07106411]
[1773244907713,0.19765724,70386.0,70361.0,0.001]
[1773244907714,0.07103902,70384.0,70361.0,0.001]
[1773244907917,0.07103902,70384.0,70359.0,0.07106411]
[1773244907918,0.00144,70383.0,70359.0,0.07106411]
[1773244908114,0.07103902,70384.0,70359.0,0.07106411]
[1773244908326,0.07125888,70386.0,70360.0,0.21558767]
[1773244908327,0.07103845,70385.0,70360.0,0.21558767]
[1773244908479,0.00022001,70386.0,70360.0,0.21558767]
[1773244908679,0.00022001,70386.0,70360.0,0.21546767]
[1773244909331,0.00122001,70386.0,70360.0,0.21546767]
[1773244909495,0.07225703,70386.0,70362.0,0.21558767]
[1773244909695,0.210007,70385.0,70361.0,0.07106209]
[1773244909883,0.00144,70384.0,70362.0,0.00144]
[1773244910085,0.002,70376.0,70363.0,0.00144]
[1773244910306,0.002,70376.0,70360.0,0.00144]
[1773244910307,0.210007,70375.0,70360.0,0.00144]
[1773244910509,0.210007,70375.0,70354.0,0.07106916]
[1773244910981,0.0001421,70372.0,70355.0,0.00144]
[1773244911186,0.2101491,70372.0,70355.0,0.00144]
[1773244911426,0.2101491,70372.0,70350.0,0.07107273]
[1773244911681,0.2101491,70372.0,70344.0,0.00144]
[1773244911682,0.210007,70370.0,70344.0,0.00144]
[1773244911867,0.07105199,70371.0,70345.0,0.21441858]
[1773244912074,0.07119356,70372.0,70345.0,0.21441858]
[1773244912475,0.07119356,70372.0,70344.0,0.00144]
[1773244912476,0.210007,70371.0,70341.0,0.07108128]
[1773244912682,0.210007,70371.0,70346.0,0.00144]
[1773244912906,0.210007,70371.0,70339.0,0.07108432]
[1773244913184,0.210007,70371.0,70340.0,0.00144]
[1773244913403,0.07119356,70372.0,70330.0,0.00144]
[1773244913404,0.210007,70369.0,70330.0,0.00144]
[1773244913599,0.210007,70369.0,70326.0,0.07109442]
[1773244913600,0.210007,70358.0,70323.0,0.00144]
[1773244913789,0.210007,70356.0,70324.0,0.00144]
[1773244913997,0.210007,70356.0,70320.0,0.07110352]
[1773244913998,0.210007,70356.0,70322.0,0.00144]
[1773244914560,0.210007,70356.0,70320.0,0.07110352]
[1773244914760,0.210007,70356.0,70320.0,0.07147646]
[1773244915278,0.07106411,70359.0,70320.0,0.07147646]
[1773244915279,0.210007,70354.0,70336.0,0.0002]
[1773244915500,0.07107118,70352.0,70322.0,0.0711015]
[1773244915887,0.07106209,70361.0,70329.0,0.0002]
[1773244916087,0.07250343,70360.0,70331.0,0.21441858]
[1773244916825,0.00144,70359.0,70331.0,0.21441858]
[1773244917579,0.00014215,70350.0,70332.0,0.07109139]
[1773244918227,0.21360482,70349.0,70333.0,0.00144]
[1773244918725,0.00014215,70350.0,70334.0,0.00144]
[1773244919483,0.00014215,70350.0,70330.0,0.07109341]
[1773244919484,0.21360482,70349.0,70330.0,0.07109341]
[1773244919726,0.07251522,70348.0,70330.0,0.07109341]
[1773244920257,0.00144,70347.0,70330.0,0.07109341]
[1773244920604,0.00144,70347.0,70330.0,0.07253341]
[1773244921257,0.210007,70346.0,70321.0,0.07110251]
[1773244921595,0.210007,70346.0,70308.0,0.21441858]
[1773244921596,0.210007,70346.0,70320.0,0.07147618]
[1773244921748,0.07121543,70350.0,70325.0,0.21441858]
[1773244921959,0.00014215,70350.0,70325.0,0.21441858]
[1773244922363,0.07121556,70350.0,70325.0,0.21441858]
[1773244922736,0.07121556,70350.0,70326.0,0.00144]
[1773244923202,0.07121556,70350.0,70327.0,0.21441858]
[1773244923416,0.42361182,70349.0,70328.0,0.00144]
[1773244923595,0.210007,70348.0,70323.0,0.00144]
[1773244923799,0.210007,70346.0,70321.0,0.07110251]
[1773244924011,0.210007,70346.0,70320.0,0.07147625]
[1773244924228,0.00144,70345.0,70320.0,0.07147642]
[1773244924458,0.210007,70344.0,70320.0,0.00037294]
[1773244924675,0.210007,70344.0,70310.0,0.07111298]
[1773244924886,0.210007,70344.0,70311.0,0.07253269]
[1773244924887,0.210007,70339.0,70311.0,0.07253269]
[1773244925719,0.210007,70337.0,70305.0,0.00144]
[1773244925938,0.210007,70337.0,70304.0,0.0009264]
[1773244925939,0.210007,70335.0,70304.0,0.0009264]
[1773244926145,0.210007,70335.0,70304.0,0.07204551]
[1773244926353,0.00144,70334.0,70304.0,0.28646409]
[1773244926569,0.00144,70334.0,70304.0,0.0009264]
[1773244926832,0.210007,70333.0,70304.0,0.07204598]
[1773244927038,0.211447,70333.0,70305.0,0.00144]
[1773244927800,0.07109139,70332.0,70306.0,0.07111768]
[1773244928016,0.210007,70331.0,70306.0,0.07111768]
[1773244928639,0.00144,70330.0,70306.0,0.07111768]
[1773244929024,0.210007,70329.0,70306.0,0.07111768]
[1773244929224,0.00144,70328.0,70306.0,0.07111768]
[1773244929616,0.00144,70328.0,70288.0,0.0002]
[1773244929617,0.21360482,70319.0,70288.0,0.0002]
[1773244929840,0.211447,70318.0,70288.0,0.07133578]
[1773244930052,0.211447,70318.0,70289.0,0.21441858]
[1773244930053,0.07254656,70317.0,70289.0,0.21441858]
[1773244930260,0.210007,70316.0,70288.0,0.0002]
[1773244930475,0.210007,70316.0,70285.0,0.00148]
[1773244930695,0.210007,70316.0,70284.0,0.0002]
[1773244930911,0.00148,70315.0,70285.0,0.00011181]
[1773244931133,0.210007,70314.0,70285.0,0.00011181]
[1773244931353,0.210007,70314.0,70280.0,0.00014229]
[1773244931571,0.210007,70309.0,70280.0,0.00025413]
[1773244931973,0.210007,70307.0,70280.0,0.00025413]
[1773244932433,0.210007,70299.0,70263.0,0.0711612]
[1773244932675,0.210007,70297.0,70262.0,0.07116146]
[1773244932905,0.00148,70298.0,70250.0,0.00148]
[1773244932906,0.210007,70288.0,70250.0,0.00148]
[1773244933114,0.210007,70286.0,70251.0,0.07117274]
[1773244933345,0.210007,70286.0,70255.0,0.07161492]
[1773244933588,0.210007,70286.0,70255.0,0.0002133]
[1773244933915,0.210007,70284.0,70255.0,0.07138234]
[1773244934321,0.07113893,70285.0,70255.0,0.07138234]
[1773244934543,0.07099675,70285.0,70256.0,0.21441858]
[1773244934744,0.21360482,70289.0,70255.0,0.07138234]
[1773244934745,0.07112881,70295.0,70260.0,0.12743585]
[1773244934956,0.05662629,70296.0,70262.0,0.21441858]
[1773244935171,0.05662629,70296.0,70270.0,0.12743585]
[1773244935485,0.05662629,70296.0,70271.0,0.21589858]
[1773244935661,0.001,70307.0,70281.0,0.21441858]
[1773244935985,0.07259296,70311.0,70283.0,0.21441858]
[1773244936205,0.07259296,70311.0,70285.0,0.21441858]
[1773244936554,0.07111296,70311.0,70285.0,0.21441858]
[1773244936756,0.01110297,70316.0,70285.0,0.21441858]
[1773244936757,0.00148,70315.0,70285.0,0.21441858]
[1773244937189,0.00148,70314.0,70285.0,0.21441858]
[1773244937365,0.00148,70314.0,70284.0,0.07113994]
[1773244937904,0.00148,70313.0,70284.0,0.07113994]
[1773244938117,0.0711106,70313.0,70286.0,0.07113792]
[1773244938303,0.00148,70312.0,70287.0,0.00148]
[1773244938915,0.00148,70311.0,70287.0,0.00148]
[1773244939289,0.00148,70310.0,70288.0,0.21441858]
[1773244939892,0.001,70314.0,70292.0,0.21552776]
[1773244940108,0.07109464,70329.0,70292.0,0.21552776]
[1773244940109,0.0710924,70331.0,70293.0,0.07113083]
[1773244940288,0.0017386,70332.0,70301.0,0.21552776]
[1773244940486,0.0002586,70332.0,70303.0,0.21552776]
[1773244941129,0.07135007,70332.0,70303.0,0.21552776]
[1773244941326,0.0002586,70332.0,70303.0,0.21552776]
[1773244941691,0.00063154,70332.0,70303.0,0.21552776]
[1773244941935,0.07108065,70343.0,70311.0,0.21552776]
[1773244942133,0.00011181,70343.0,70315.0,0.21552776]
[1773244942523,0.00011181,70343.0,70314.0,0.07110959]
[1773244942726,0.00011181,70343.0,70315.0,0.00148]
[1773244942931,0.00011181,70343.0,70315.0,0.21552776]
[1773244943148,0.00148,70342.0,70316.0,0.21700776]
[1773244943352,0.00148,70342.0,70316.0,0.00148]
[1773244943558,0.00148,70341.0,70316.0,0.00148]
[1773244944182,0.00148,70342.0,70316.0,0.00148]
[1773244944406,0.07108229,70341.0,70317.0,0.07110656]
[1773244944632,0.01120587,70348.0,70330.0,0.12743585]
[1773244944759,0.01120587,70348.0,70331.0,0.21700776]
[1773244944960,0.01193191,70358.0,70331.0,0.21700776]
[1773244945297,1e-08,70355.0,70341.0,0.21552776]
[1773244945492,1e-08,70355.0,70342.0,0.00148]
[1773244945662,1e-08,70355.0,70343.0,0.00148]
[1773244946096,0.00148,70370.0,70343.0,0.00148]
[1773244946097,0.07104831,70375.0,70343.0,0.21700776]
[1773244946303,0.07104831,70375.0,70345.0,0.21552776]
[1773244946304,0.07104832,70375.0,70345.0,0.21552776]
[1773244946859,0.07104721,70376.0,70345.0,0.21552776]
[1773244947506,0.07104721,70376.0,70346.0,0.00148]
[1773244948053,0.07104721,70376.0,70347.0,0.00133782]
[1773244948259,0.00014211,70369.0,70347.0,0.00133782]
[1773244948404,0.00014211,70369.0,70349.0,0.21552776]
[1773244948985,0.00014211,70369.0,70350.0,0.21552776]
[1773244949643,0.00014211,70369.0,70351.0,0.00148]
[1773244949843,0.00014211,70369.0,70350.0,0.21552776]
[1773244950149,0.00014211,70369.0,70348.0,0.07107522]
[1773244950150,0.00014211,70369.0,70351.0,0.00148]
[1773244950301,0.07106108,70362.0,70350.0,0.00148]
[1773244950723,0.00022001,70363.0,70350.0,0.00148]
[1773244950925,0.07128048,70363.0,70350.0,0.00148]
[1773244951098,0.07128048,70363.0,70339.0,0.07108432]
[1773244951731,0.07128048,70363.0,70330.0,0.07120505]
[1773244951964,0.26871471,70363.0,70331.0,0.00148]
[1773244952116,0.07128048,70363.0,70331.0,0.00148]
[1773244952856,0.07128048,70363.0,70332.0,0.07109139]
[1773244953070,0.19743423,70362.0,70332.0,0.07109139]
[1773244953388,0.07128048,70363.0,70333.0,0.21552776]
[1773244954666,0.07128021,70363.0,70333.0,0.21552776]
[1773244955004,0.07128021,70363.0,70335.0,0.21552776]
[1773244955996,0.07128021,70363.0,70331.0,0.00148]
[1773244955997,0.19743423,70359.0,70331.0,0.00148]
[1773244956169,0.19743423,70359.0,70333.0,0.001]
[1773244956369,0.19743423,70359.0,70331.0,0.07109155]
[1773244956803,0.07106613,70357.0,70331.0,0.07109155]
[1773244957023,0.07128025,70363.0,70332.0,0.11230123]
[1773244957175,0.07128025,70363.0,70335.0,0.21552776]
[1773244957362,0.00022001,70363.0,70336.0,0.11230123]
[1773244957568,0.00022001,70363.0,70338.0,0.21552776]
[1773244957910,0.07128015,70363.0,70338.0,0.21552776]